[Event "*** Titled Tuesday Blitz"]
[Site "Chess.com"]
[Date "2020.05.12"]
[Round "5"]
[White "ural58"]
[Black "cassoulet"]
[Result "0-1"]
[WhiteElo "2463"]
[BlackElo "2669"]
[TimeControl "180+1"]
[EndTime "10:55:51 PDT"]
[Termination "cassoulet won on time"]

1. e4 {[%clk 0:03:00.9]} 1... c6 {[%clk 0:02:58.6]} 2. b3 {[%clk 0:02:59.8]}
2... Nf6 {[%clk 0:02:56.1]} 3. e5 {[%clk 0:02:59.1]} 3... Nd5 {[%clk 0:02:56.3]}
4. Bb2 {[%clk 0:02:59.3]} 4... d6 {[%clk 0:02:52.2]} 5. Nf3 {[%clk 0:02:58.8]}
5... Bg4 {[%clk 0:02:51.6]} 6. h3 {[%clk 0:02:58.1]} 6... Bh5 {[%clk 0:02:51.4]}
7. c4 {[%clk 0:02:35.8]} 7... Nc7 {[%clk 0:02:45.1]} 8. Be2 {[%clk 0:02:25.3]}
8... d5 {[%clk 0:02:41.8]} 9. d4 {[%clk 0:02:02.6]} 9... e6 {[%clk 0:02:38.9]}
10. O-O {[%clk 0:02:02.6]} 10... Be7 {[%clk 0:02:36.3]} 11. Nbd2 {[%clk
0:02:00.3]} 11... O-O {[%clk 0:02:35.3]} 12. Re1 {[%clk 0:01:59.9]} 12... Nba6
{[%clk 0:02:25.1]} 13. Rc1 {[%clk 0:01:57.1]} 13... c5 {[%clk 0:02:22.2]} 14. a3
{[%clk 0:01:41.5]} 14... dxc4 {[%clk 0:02:14.3]} 15. Nxc4 {[%clk 0:01:40.8]}
15... Nd5 {[%clk 0:02:03.5]} 16. Nfd2 {[%clk 0:01:26.3]} 16... Bg6 {[%clk
0:01:55.8]} 17. Bf3 {[%clk 0:01:13.9]} 17... Rc8 {[%clk 0:01:46.8]} 18. Ne4
{[%clk 0:01:06.9]} 18... cxd4 {[%clk 0:01:38.9]} 19. Ned6 {[%clk 0:01:03.8]}
19... Bxd6 {[%clk 0:00:58.8]} 20. Nxd6 {[%clk 0:01:03.6]} 20... Rxc1 {[%clk
0:00:55]} 21. Qxc1 {[%clk 0:01:04.1]} 21... Qb6 {[%clk 0:00:47.6]} 22. Bxd5
{[%clk 0:00:56.6]} 22... exd5 {[%clk 0:00:46.6]} 23. b4 {[%clk 0:00:56.5]} 23...
d3 {[%clk 0:00:43.1]} 24. Kh2 {[%clk 0:00:51]} 24... Nc7 {[%clk 0:00:40.8]} 25.
f4 {[%clk 0:00:46.4]} 25... Nb5 {[%clk 0:00:30.9]} 26. f5 {[%clk 0:00:42.5]}
26... Nxd6 {[%clk 0:00:30.4]} 27. fxg6 {[%clk 0:00:40.6]} 27... Ne4 {[%clk
0:00:23.7]} 28. gxf7+ {[%clk 0:00:34.8]} 28... Rxf7 {[%clk 0:00:24.6]} 29. Qc8+
{[%clk 0:00:19.6]} 29... Rf8 {[%clk 0:00:24.3]} 30. Qd7 {[%clk 0:00:20]} 30...
Qc6 {[%clk 0:00:19.5]} 31. Qg4 {[%clk 0:00:16.4]} 31... Qg6 {[%clk 0:00:10.9]}
32. Qd1 {[%clk 0:00:10.7]} 32... d2 {[%clk 0:00:10.8]} 33. Rxe4 {[%clk
0:00:08.3]} 33... Qxe4 {[%clk 0:00:10]} 34. Qxd2 {[%clk 0:00:09.2]} 34... Qf4+
{[%clk 0:00:10.3]} 35. Qxf4 {[%clk 0:00:07.7]} 35... Rxf4 {[%clk 0:00:11.2]} 36.
Kg3 {[%clk 0:00:06.7]} 36... Re4 {[%clk 0:00:12.1]} 37. Kf3 {[%clk 0:00:07]}
37... Kf7 {[%clk 0:00:12.6]} 38. Bc3 {[%clk 0:00:07.1]} 38... Ke6 {[%clk
0:00:13]} 39. g4 {[%clk 0:00:08]} 39... g6 {[%clk 0:00:13.1]} 40. h4 {[%clk
0:00:07.9]} 40... h5 {[%clk 0:00:13.7]} 41. gxh5 {[%clk 0:00:06.9]} 41... gxh5
{[%clk 0:00:14.6]} 0-1

[Event "*** Titled Tuesday Blitz"]
[Site "Chess.com"]
[Date "2020.05.12"]
[Round "5"]
[White "albano87"]
[Black "ShieldingOff"]
[Result "1-0"]
[WhiteElo "2305"]
[BlackElo "2024"]
[TimeControl "180+1"]
[EndTime "10:55:51 PDT"]
[Termination "albano87 won on time"]

1. Nf3 {[%clk 0:03:00.5]} 1... Nf6 {[%clk 0:02:58.8]} 2. g3 {[%clk 0:03:00.6]}
2... g6 {[%clk 0:02:58.3]} 3. Bg2 {[%clk 0:03:01.2]} 3... Bg7 {[%clk 0:02:58.7]}
4. O-O {[%clk 0:03:01.2]} 4... O-O {[%clk 0:02:59.2]} 5. d4 {[%clk 0:03:01.8]}
5... d6 {[%clk 0:02:59.1]} 6. a4 {[%clk 0:03:01.8]} 6... c5 {[%clk 0:02:58.9]}
7. dxc5 {[%clk 0:02:47.7]} 7... dxc5 {[%clk 0:02:58.8]} 8. Nc3 {[%clk
0:02:45.8]} 8... Nc6 {[%clk 0:02:56.7]} 9. Bf4 {[%clk 0:02:42.5]} 9... a6 {[%clk
0:02:51.2]} 10. Ne5 {[%clk 0:02:35.8]} 10... Nd4 {[%clk 0:02:25.2]} 11. Nf3
{[%clk 0:02:18.9]} 11... Bf5 {[%clk 0:02:02.2]} 12. Nxd4 {[%clk 0:01:49.4]}
12... cxd4 {[%clk 0:02:01.5]} 13. Na2 {[%clk 0:01:26]} 13... Rc8 {[%clk
0:01:43.8]} 14. c3 {[%clk 0:01:25.8]} 14... dxc3 {[%clk 0:01:34.2]} 15. Nxc3
{[%clk 0:01:26.7]} 15... b6 {[%clk 0:01:24.1]} 16. Qxd8 {[%clk 0:01:09.2]} 16...
Rfxd8 {[%clk 0:01:14.2]} 17. Rfd1 {[%clk 0:01:09.6]} 17... Bc2 {[%clk
0:00:50.3]} 18. Rxd8+ {[%clk 0:00:56.9]} 18... Rxd8 {[%clk 0:00:47.6]} 19. Rc1
{[%clk 0:00:57.2]} 19... Bb3 {[%clk 0:00:44.5]} 20. Bf3 {[%clk 0:00:45.6]} 20...
e6 {[%clk 0:00:25.6]} 21. e4 {[%clk 0:00:41.4]} 21... Ne8 {[%clk 0:00:20.1]} 22.
Bd1 {[%clk 0:00:35.6]} 22... Bxc3 {[%clk 0:00:15.7]} 23. Bxb3 {[%clk 0:00:26.7]}
23... Bxb2 {[%clk 0:00:15.7]} 24. Rc6 {[%clk 0:00:23]} 24... Bd4 {[%clk
0:00:14.9]} 25. Kg2 {[%clk 0:00:18.6]} 25... Bc5 {[%clk 0:00:14.3]} 26. Bc4
{[%clk 0:00:15.8]} 26... a5 {[%clk 0:00:13.1]} 27. Kf3 {[%clk 0:00:11.6]} 27...
Rd4 {[%clk 0:00:12.9]} 28. Bb5 {[%clk 0:00:10.7]} 28... Nd6 {[%clk 0:00:08.6]}
29. Bxd6 {[%clk 0:00:07.6]} 29... Rxd6 {[%clk 0:00:08.7]} 30. Rc8+ {[%clk
0:00:07.6]} 30... Kg7 {[%clk 0:00:07.7]} 31. Ke2 {[%clk 0:00:08.1]} 31... Rd4
{[%clk 0:00:06.8]} 32. f3 {[%clk 0:00:07.6]} 32... Rb4 {[%clk 0:00:06.4]} 33.
Rc7 {[%clk 0:00:06.6]} 33... Rb2+ {[%clk 0:00:06.2]} 34. Kd3 {[%clk 0:00:06.8]}
34... Rxh2 {[%clk 0:00:05.5]} 35. Be8 {[%clk 0:00:05.4]} 35... Rf2 {[%clk
0:00:01.8]} 36. Rxf7+ {[%clk 0:00:04.8]} 36... Kh6 {[%clk 0:00:01.2]} 37. Rf4
{[%clk 0:00:04.3]} 1-0

[Event "*** Titled Tuesday Blitz"]
[Site "Chess.com"]
[Date "2020.05.12"]
[Round "5"]
[White "Chesstrainer1"]
[Black "BogdanBelyakov89"]
[Result "0-1"]
[WhiteElo "2403"]
[BlackElo "2558"]
[TimeControl "180+1"]
[EndTime "10:55:52 PDT"]
[Termination "BogdanBelyakov89 won on time"]

1. Nf3 {[%clk 0:03:00.9]} 1... Nf6 {[%clk 0:02:58]} 2. c4 {[%clk 0:03:00.8]}
2... g6 {[%clk 0:02:58.1]} 3. Nc3 {[%clk 0:03:01]} 3... Bg7 {[%clk 0:02:58.5]}
4. e4 {[%clk 0:03:01.1]} 4... d6 {[%clk 0:02:59]} 5. d4 {[%clk 0:03:01.4]} 5...
O-O {[%clk 0:02:59.3]} 6. Be2 {[%clk 0:03:01.6]} 6... e5 {[%clk 0:02:59.2]} 7.
d5 {[%clk 0:03:01.2]} 7... a5 {[%clk 0:02:58.8]} 8. Bg5 {[%clk 0:02:58.3]} 8...
Na6 {[%clk 0:02:55]} 9. Nd2 {[%clk 0:02:54.2]} 9... Qe8 {[%clk 0:02:52.4]} 10.
h4 {[%clk 0:02:42.5]} 10... h5 {[%clk 0:02:44.8]} 11. f3 {[%clk 0:02:39.5]}
11... Nh7 {[%clk 0:02:38.3]} 12. Be3 {[%clk 0:02:39.1]} 12... f5 {[%clk
0:02:38.3]} 13. g4 {[%clk 0:02:28.9]} 13... fxg4 {[%clk 0:02:16.6]} 14. fxg4
{[%clk 0:02:29.8]} 14... hxg4 {[%clk 0:02:16.7]} 15. Bxg4 {[%clk 0:02:29.2]}
15... Bxg4 {[%clk 0:01:46.1]} 16. Qxg4 {[%clk 0:02:28.8]} 16... Nf6 {[%clk
0:01:46.4]} 17. Qg2 {[%clk 0:02:15.6]} 17... Nh5 {[%clk 0:01:46.2]} 18. O-O-O
{[%clk 0:02:00.4]} 18... Nb4 {[%clk 0:01:40.2]} 19. Rdg1 {[%clk 0:01:40.7]}
19... Nd3+ {[%clk 0:01:38.3]} 20. Kc2 {[%clk 0:01:40.6]} 20... Ndf4 {[%clk
0:01:36.1]} 21. Qg4 {[%clk 0:01:39.8]} 21... Kh7 {[%clk 0:01:18.2]} 22. Nf3
{[%clk 0:01:33.3]} 22... Bh6 {[%clk 0:01:18.4]} 23. Ng5+ {[%clk 0:00:59.3]}
23... Bxg5 {[%clk 0:01:18.1]} 24. Qxg5 {[%clk 0:00:55.6]} 24... Qd8 {[%clk
0:01:06.5]} 25. Qg4 {[%clk 0:00:27.5]} 25... Qf6 {[%clk 0:01:03]} 26. Rf1 {[%clk
0:00:24.4]} 26... Rf7 {[%clk 0:01:01.8]} 27. Rhg1 {[%clk 0:00:23.6]} 27... Raf8
{[%clk 0:01:00.8]} 28. Ne2 {[%clk 0:00:23.3]} 28... Qg7 {[%clk 0:00:57.5]} 29.
Ng3 {[%clk 0:00:19.7]} 29... Nxg3 {[%clk 0:00:55.5]} 30. Rxg3 {[%clk 0:00:20.6]}
30... Nh5 {[%clk 0:00:55.1]} 31. Rgf3 {[%clk 0:00:17]} 31... Rxf3 {[%clk
0:00:55]} 32. Rxf3 {[%clk 0:00:17.9]} 32... Rxf3 {[%clk 0:00:55.1]} 33. Qxf3
{[%clk 0:00:18.8]} 33... Qf6 {[%clk 0:00:55.3]} 34. Qg4 {[%clk 0:00:16.6]} 34...
Qf1 {[%clk 0:00:48]} 35. Qd7+ {[%clk 0:00:15.8]} 35... Ng7 {[%clk 0:00:48.2]}
36. Qxc7 {[%clk 0:00:11.4]} 36... Qe2+ {[%clk 0:00:48]} 37. Bd2 {[%clk
0:00:11.8]} 37... Qxe4+ {[%clk 0:00:48.2]} 38. Kc1 {[%clk 0:00:12.1]} 38... Qxh4
{[%clk 0:00:47.4]} 39. Qxb7 {[%clk 0:00:10.6]} 39... Qxc4+ {[%clk 0:00:47]} 40.
Kb1 {[%clk 0:00:08.9]} 40... g5 {[%clk 0:00:42.3]} 41. b3 {[%clk 0:00:06.2]}
41... Qd3+ {[%clk 0:00:40.7]} 42. Kc1 {[%clk 0:00:06]} 42... g4 {[%clk
0:00:40.8]} 43. Qe7 {[%clk 0:00:04.6]} 43... Qf1+ {[%clk 0:00:38]} 44. Kb2
{[%clk 0:00:04]} 44... Qf2 {[%clk 0:00:37]} 45. Kc1 {[%clk 0:00:02]} 45... Qc5+
{[%clk 0:00:35.8]} 0-1

[Event "*** Titled Tuesday Blitz"]
[Site "Chess.com"]
[Date "2020.05.12"]
[Round "5"]
[White "BocharovD"]
[Black "Volodar_Murzin"]
[Result "0-1"]
[WhiteElo "2853"]
[BlackElo "2741"]
[TimeControl "180+1"]
[EndTime "10:55:53 PDT"]
[Termination "Volodar_Murzin won by resignation"]

1. c4 {[%clk 0:03:00.9]} 1... Nf6 {[%clk 0:02:59.9]} 2. Nf3 {[%clk 0:02:59.3]}
2... g6 {[%clk 0:03:00.3]} 3. d4 {[%clk 0:02:58.4]} 3... Bg7 {[%clk 0:03:00.7]}
4. g3 {[%clk 0:02:58.9]} 4... O-O {[%clk 0:03:00.2]} 5. Bg2 {[%clk 0:02:59.5]}
5... d6 {[%clk 0:03:00.1]} 6. O-O {[%clk 0:03:00.1]} 6... Nbd7 {[%clk
0:03:00.7]} 7. Nc3 {[%clk 0:03:00.6]} 7... e5 {[%clk 0:03:00.6]} 8. e4 {[%clk
0:03:01]} 8... exd4 {[%clk 0:02:59.8]} 9. Nxd4 {[%clk 0:03:00.7]} 9... Nc5
{[%clk 0:03:00.1]} 10. h3 {[%clk 0:03:00.1]} 10... Bd7 {[%clk 0:02:59.4]} 11.
Nb3 {[%clk 0:02:55]} 11... Na4 {[%clk 0:02:58.5]} 12. Ne2 {[%clk 0:02:48.3]}
12... Re8 {[%clk 0:02:56.9]} 13. Qc2 {[%clk 0:02:48.2]} 13... Qc8 {[%clk
0:02:12.4]} 14. Kh2 {[%clk 0:02:44.5]} 14... Bc6 {[%clk 0:01:45.9]} 15. f3
{[%clk 0:02:42.3]} 15... Nc5 {[%clk 0:01:43.2]} 16. Nxc5 {[%clk 0:02:21.7]}
16... dxc5 {[%clk 0:01:44.1]} 17. Be3 {[%clk 0:02:22.2]} 17... Nd7 {[%clk
0:01:38.8]} 18. Rad1 {[%clk 0:02:09.9]} 18... b6 {[%clk 0:01:33.5]} 19. f4
{[%clk 0:02:05.6]} 19... Nf8 {[%clk 0:01:22.9]} 20. Nc3 {[%clk 0:02:05.5]} 20...
Ne6 {[%clk 0:01:22.7]} 21. e5 {[%clk 0:02:05.6]} 21... Bxg2 {[%clk 0:01:20.6]}
22. Qxg2 {[%clk 0:02:05]} 22... Qa6 {[%clk 0:00:53.7]} 23. b3 {[%clk 0:02:04.4]}
23... Rad8 {[%clk 0:00:53.3]} 24. Rd5 {[%clk 0:01:34.5]} 24... c6 {[%clk
0:00:35.2]} 25. Rxd8 {[%clk 0:01:28.8]} 25... Rxd8 {[%clk 0:00:36.1]} 26. Qxc6
{[%clk 0:01:27.4]} 26... Qa5 {[%clk 0:00:34.8]} 27. Nd5 {[%clk 0:00:59]} 27...
Qxa2+ {[%clk 0:00:33.9]} 28. Bf2 {[%clk 0:00:17.3]} 28... Qxb3 {[%clk
0:00:33.2]} 29. f5 {[%clk 0:00:17.2]} 29... gxf5 {[%clk 0:00:30.6]} 30. Ne7+
{[%clk 0:00:16.9]} 30... Kh8 {[%clk 0:00:30.4]} 31. Nxf5 {[%clk 0:00:17.6]}
31... Qxc4 {[%clk 0:00:30]} 32. Kg1 {[%clk 0:00:16.1]} 32... Bxe5 {[%clk
0:00:24.1]} 33. Qb7 {[%clk 0:00:12.7]} 33... Ng5 {[%clk 0:00:18.8]} 34. h4
{[%clk 0:00:11.8]} 34... Qe4 {[%clk 0:00:15.5]} 35. Qe7 {[%clk 0:00:10.1]} 35...
Nf3+ {[%clk 0:00:14.6]} 36. Kg2 {[%clk 0:00:07.8]} 36... Nxh4+ {[%clk
0:00:13.6]} 37. Kh3 {[%clk 0:00:08.3]} 37... Qxf5+ {[%clk 0:00:13]} 38. Kh2
{[%clk 0:00:08.4]} 38... Nf3+ {[%clk 0:00:12.6]} 39. Kg2 {[%clk 0:00:09]} 39...
Bf6 {[%clk 0:00:12.7]} 0-1

[Event "*** Titled Tuesday Blitz"]
[Site "Chess.com"]
[Date "2020.05.12"]
[Round "5"]
[White "SmirnovAlexandrA"]
[Black "DaggiGretarsson"]
[Result "1-0"]
[WhiteElo "2375"]
[BlackElo "2577"]
[TimeControl "180+1"]
[EndTime "10:55:53 PDT"]
[Termination "SmirnovAlexandrA won by checkmate"]

1. e4 {[%clk 0:03:00.9]} 1... g6 {[%clk 0:02:59.9]} 2. d4 {[%clk 0:03:00.4]}
2... Bg7 {[%clk 0:03:00.2]} 3. Nc3 {[%clk 0:03:00.3]} 3... d6 {[%clk 0:03:00.4]}
4. Be3 {[%clk 0:02:59.7]} 4... a6 {[%clk 0:02:59.9]} 5. Qd2 {[%clk 0:02:59.5]}
5... b5 {[%clk 0:02:59.4]} 6. a3 {[%clk 0:02:59]} 6... Nd7 {[%clk 0:02:58.3]} 7.
h4 {[%clk 0:02:57.2]} 7... h5 {[%clk 0:02:55.9]} 8. Nh3 {[%clk 0:02:54.2]} 8...
Bb7 {[%clk 0:02:55.1]} 9. f3 {[%clk 0:02:53.8]} 9... Rc8 {[%clk 0:02:54.6]} 10.
Be2 {[%clk 0:02:45.1]} 10... c5 {[%clk 0:02:53.8]} 11. d5 {[%clk 0:02:43.9]}
11... Ngf6 {[%clk 0:02:51.9]} 12. O-O {[%clk 0:02:37.4]} 12... O-O {[%clk
0:02:51.1]} 13. Bh6 {[%clk 0:02:35.8]} 13... Re8 {[%clk 0:02:49.4]} 14. Bxg7
{[%clk 0:02:34.3]} 14... Kxg7 {[%clk 0:02:49.1]} 15. a4 {[%clk 0:02:28.7]} 15...
b4 {[%clk 0:02:44.5]} 16. Nd1 {[%clk 0:02:27.4]} 16... Ne5 {[%clk 0:02:23.7]}
17. Ne3 {[%clk 0:02:22.7]} 17... e6 {[%clk 0:02:18.9]} 18. dxe6 {[%clk 0:02:16]}
18... fxe6 {[%clk 0:02:01.3]} 19. b3 {[%clk 0:02:13.8]} 19... d5 {[%clk
0:01:59.9]} 20. exd5 {[%clk 0:02:12.4]} 20... exd5 {[%clk 0:01:58.8]} 21. Rfe1
{[%clk 0:02:00.6]} 21... Nf7 {[%clk 0:01:31.4]} 22. Bd3 {[%clk 0:01:56.1]} 22...
c4 {[%clk 0:01:26.7]} 23. Bf1 {[%clk 0:01:34.7]} 23... Qb6 {[%clk 0:01:05.5]}
24. Kh1 {[%clk 0:01:17.9]} 24... Nd6 {[%clk 0:00:43.9]} 25. Rad1 {[%clk
0:01:08.5]} 25... cxb3 {[%clk 0:00:29.3]} 26. cxb3 {[%clk 0:01:09.4]} 26... Rc3
{[%clk 0:00:28.8]} 27. Nc2 {[%clk 0:00:57.9]} 27... Rxe1 {[%clk 0:00:23.5]} 28.
Rxe1 {[%clk 0:00:58.8]} 28... Nf5 {[%clk 0:00:23.4]} 29. Nf4 {[%clk 0:00:52.4]}
29... Nxh4 {[%clk 0:00:09.7]} 30. Re7+ {[%clk 0:00:41.5]} 30... Kg8 {[%clk
0:00:06.4]} 31. Re6 {[%clk 0:00:40.7]} 31... Qc7 {[%clk 0:00:04.4]} 32. Rxf6
{[%clk 0:00:29.4]} 32... Rxc2 {[%clk 0:00:04.4]} 33. Qd4 {[%clk 0:00:29.3]}
33... Rc1 {[%clk 0:00:04.2]} 34. Kg1 {[%clk 0:00:26.4]} 34... Qe7 {[%clk
0:00:02.5]} 35. Nxg6 {[%clk 0:00:23.4]} 35... Qe1 {[%clk 0:00:02.3]} 36. Rf8+
{[%clk 0:00:12.9]} 36... Kh7 {[%clk 0:00:02.1]} 37. Qh8+ {[%clk 0:00:08.8]}
37... Kxg6 {[%clk 0:00:02.2]} 38. Qf6+ {[%clk 0:00:08.1]} 38... Kh7 {[%clk
0:00:01.8]} 39. Rh8# {[%clk 0:00:08]} 1-0

[Event "*** Titled Tuesday Blitz"]
[Site "Chess.com"]
[Date "2020.05.12"]
[Round "5"]
[White "Vamostodorecto"]
[Black "nitpicker"]
[Result "1/2-1/2"]
[WhiteElo "2443"]
[BlackElo "2259"]
[TimeControl "180+1"]
[EndTime "10:55:53 PDT"]
[Termination "Game drawn by repetition"]

1. d4 {[%clk 0:03:00.9]} 1... Nf6 {[%clk 0:02:59.2]} 2. c4 {[%clk 0:03:01.4]}
2... e6 {[%clk 0:02:58.5]} 3. Nc3 {[%clk 0:03:01.4]} 3... Bb4 {[%clk 0:02:57.9]}
4. Nf3 {[%clk 0:03:01.8]} 4... d5 {[%clk 0:02:54.5]} 5. cxd5 {[%clk 0:03:01]}
5... exd5 {[%clk 0:02:52.6]} 6. Bf4 {[%clk 0:03:01.5]} 6... c6 {[%clk
0:02:41.8]} 7. e3 {[%clk 0:03:01.1]} 7... O-O {[%clk 0:02:39.7]} 8. Bd3 {[%clk
0:03:00.4]} 8... Nbd7 {[%clk 0:02:28.5]} 9. O-O {[%clk 0:02:59.6]} 9... Re8
{[%clk 0:02:27.6]} 10. Qc2 {[%clk 0:02:56.9]} 10... Nf8 {[%clk 0:02:25.6]} 11.
Bg5 {[%clk 0:02:50.4]} 11... g6 {[%clk 0:02:22.3]} 12. e4 {[%clk 0:02:33.1]}
12... dxe4 {[%clk 0:02:21.7]} 13. Nxe4 {[%clk 0:02:30.5]} 13... Be7 {[%clk
0:02:22.1]} 14. Bh6 {[%clk 0:02:22.2]} 14... Bf5 {[%clk 0:02:12.2]} 15. Nxf6+
{[%clk 0:02:20.3]} 15... Bxf6 {[%clk 0:02:07.7]} 16. Bxf5 {[%clk 0:02:21.2]}
16... gxf5 {[%clk 0:02:05.7]} 17. Qxf5 {[%clk 0:02:22.1]} 17... Bg7 {[%clk
0:02:00.8]} 18. Bxg7 {[%clk 0:02:13.9]} 18... Kxg7 {[%clk 0:02:00.2]} 19. Rad1
{[%clk 0:02:10.7]} 19... Re6 {[%clk 0:01:48.2]} 20. Ng5 {[%clk 0:02:07.6]} 20...
Rf6 {[%clk 0:01:44.2]} 21. Qe5 {[%clk 0:01:59.9]} 21... Ng6 {[%clk 0:01:44]} 22.
Qg3 {[%clk 0:01:55.9]} 22... h6 {[%clk 0:01:36.1]} 23. Nf3 {[%clk 0:01:49.9]}
23... Kh7 {[%clk 0:01:35.6]} 24. Ne5 {[%clk 0:01:46.5]} 24... Nf4 {[%clk
0:01:32.2]} 25. Qe3 {[%clk 0:01:38.9]} 25... Qd5 {[%clk 0:01:30.4]} 26. f3
{[%clk 0:01:36.6]} 26... Qxa2 {[%clk 0:01:26.7]} 27. Ng4 {[%clk 0:01:28.3]}
27... Rf5 {[%clk 0:01:15.6]} 28. g3 {[%clk 0:01:15.7]} 28... Ng6 {[%clk
0:01:06.7]} 29. Qxh6+ {[%clk 0:01:11.6]} 29... Kg8 {[%clk 0:01:07.2]} 30. Rf2
{[%clk 0:01:05]} 30... Re8 {[%clk 0:01:04.9]} 31. h4 {[%clk 0:01:01.7]} 31...
Qb3 {[%clk 0:00:48.7]} 32. Kg2 {[%clk 0:00:49]} 32... Qxd1 {[%clk 0:00:47.1]}
33. h5 {[%clk 0:00:46.6]} 33... Re6 {[%clk 0:00:42.3]} 34. hxg6 {[%clk
0:00:45.4]} 34... Rxg6 {[%clk 0:00:41.6]} 35. Qh4 {[%clk 0:00:41.1]} 35... Kg7
{[%clk 0:00:37.1]} 36. Ne5 {[%clk 0:00:39.2]} 36... Rh6 {[%clk 0:00:32.6]} 37.
Qg4+ {[%clk 0:00:35.4]} 37... Kh8 {[%clk 0:00:27.1]} 38. Rf1 {[%clk 0:00:22]}
38... Qc2+ {[%clk 0:00:26.7]} 39. Rf2 {[%clk 0:00:20.7]} 39... Qb1 {[%clk
0:00:26.4]} 40. Rf1 {[%clk 0:00:19.9]} 40... Qxb2+ {[%clk 0:00:24.5]} 41. Rf2
{[%clk 0:00:20.4]} 41... Qb1 {[%clk 0:00:24.2]} 42. Rf1 {[%clk 0:00:20.1]} 42...
Qc2+ {[%clk 0:00:19.8]} 43. Rf2 {[%clk 0:00:20.2]} 43... Rh2+ {[%clk 0:00:19.6]}
44. Kxh2 {[%clk 0:00:20]} 44... Qxf2+ {[%clk 0:00:19.5]} 45. Kh3 {[%clk
0:00:20.6]} 45... Qf1+ {[%clk 0:00:13.5]} 46. Kh2 {[%clk 0:00:20.1]} 46... Qf2+
{[%clk 0:00:13.1]} 47. Kh3 {[%clk 0:00:19.8]} 47... Qf1+ {[%clk 0:00:12.5]} 48.
Kh2 {[%clk 0:00:20]} 48... Qf2+ {[%clk 0:00:12.5]} 1/2-1/2

[Event "*** Titled Tuesday Blitz"]
[Site "Chess.com"]
[Date "2020.05.12"]
[Round "5"]
[White "OparinGrigoriy"]
[Black "MarcoRiehle"]
[Result "1-0"]
[WhiteElo "2919"]
[BlackElo "2614"]
[TimeControl "180+1"]
[EndTime "10:55:54 PDT"]
[Termination "OparinGrigoriy won on time"]

1. Nf3 {[%clk 0:03:00.9]} 1... c5 {[%clk 0:02:59.6]} 2. g3 {[%clk 0:03:01.8]}
2... Nc6 {[%clk 0:02:58.9]} 3. c4 {[%clk 0:03:01.7]} 3... Nf6 {[%clk 0:02:57.6]}
4. Bg2 {[%clk 0:03:00.7]} 4... d5 {[%clk 0:02:58]} 5. cxd5 {[%clk 0:03:01.4]}
5... Nxd5 {[%clk 0:02:58.6]} 6. Nc3 {[%clk 0:03:01.7]} 6... Nc7 {[%clk
0:02:59.1]} 7. a3 {[%clk 0:02:56]} 7... e5 {[%clk 0:02:59.3]} 8. Rb1 {[%clk
0:02:56.3]} 8... Be6 {[%clk 0:02:41.2]} 9. b4 {[%clk 0:02:54]} 9... f6 {[%clk
0:02:38.4]} 10. bxc5 {[%clk 0:02:52.1]} 10... Bxc5 {[%clk 0:02:39.3]} 11. Rxb7
{[%clk 0:02:49.9]} 11... O-O {[%clk 0:02:31.8]} 12. O-O {[%clk 0:02:46]} 12...
Bb6 {[%clk 0:02:29.3]} 13. Ng5 {[%clk 0:02:27.8]} 13... fxg5 {[%clk 0:02:25.3]}
14. Bxc6 {[%clk 0:02:27.8]} 14... Qf6 {[%clk 0:02:04.2]} 15. Rxb6 {[%clk
0:02:19]} 15... axb6 {[%clk 0:02:01.2]} 16. Ne4 {[%clk 0:02:16.6]} 16... Qg6
{[%clk 0:01:49.1]} 17. Bxa8 {[%clk 0:02:16.5]} 17... Rxa8 {[%clk 0:01:49.5]} 18.
d3 {[%clk 0:02:16.8]} 18... h6 {[%clk 0:01:44.7]} 19. Qc2 {[%clk 0:02:09.1]}
19... Nd5 {[%clk 0:01:33.4]} 20. Qc6 {[%clk 0:01:57.9]} 20... Rc8 {[%clk
0:01:33]} 21. Qd6 {[%clk 0:01:58]} 21... Qf5 {[%clk 0:01:08.6]} 22. Be3 {[%clk
0:01:57.6]} 22... Bf7 {[%clk 0:01:03.6]} 23. Bxb6 {[%clk 0:01:48.6]} 23... Nxb6
{[%clk 0:01:04.5]} 24. Qxb6 {[%clk 0:01:48.5]} 24... Rc2 {[%clk 0:01:05.1]} 25.
Qe3 {[%clk 0:01:43.2]} 25... Ra2 {[%clk 0:01:02.5]} 26. Nd6 {[%clk 0:01:39.9]}
26... Qe6 {[%clk 0:00:53.4]} 27. Nxf7 {[%clk 0:01:39.8]} 27... Kxf7 {[%clk
0:00:54.2]} 28. Rb1 {[%clk 0:01:32]} 28... Rxa3 {[%clk 0:00:49.2]} 29. Rb7+
{[%clk 0:01:26.6]} 29... Kg8 {[%clk 0:00:48.7]} 30. Rb8+ {[%clk 0:01:26.8]}
30... Kf7 {[%clk 0:00:43.1]} 31. Qf3+ {[%clk 0:01:24.8]} 31... Qf6 {[%clk
0:00:34.2]} 32. Qd5+ {[%clk 0:01:20.7]} 32... Kg6 {[%clk 0:00:33.5]} 33. Qe4+
{[%clk 0:01:19.8]} 33... Kh5 {[%clk 0:00:31.3]} 34. Kg2 {[%clk 0:01:08]} 34...
Ra6 {[%clk 0:00:24.7]} 35. Rc8 {[%clk 0:00:41.4]} 35... g4 {[%clk 0:00:19.9]}
36. Rc5 {[%clk 0:00:37.8]} 36... Re6 {[%clk 0:00:19.4]} 37. d4 {[%clk
0:00:37.8]} 37... g5 {[%clk 0:00:19]} 38. Rxe5 {[%clk 0:00:19.1]} 38... Rxe5
{[%clk 0:00:10.8]} 39. Qxe5 {[%clk 0:00:20]} 39... Qf7 {[%clk 0:00:10.7]} 40. d5
{[%clk 0:00:18.6]} 40... Qf8 {[%clk 0:00:06.1]} 41. Qd4 {[%clk 0:00:17.5]} 41...
Qe7 {[%clk 0:00:02.3]} 42. Kf1 {[%clk 0:00:12.4]} 42... Qd6 {[%clk 0:00:01.4]}
43. f3 {[%clk 0:00:10.9]} 1-0